fUSD/lending_fUSD_20240324
["ID","MTS","AMOUNT","RATE_DAILY","PERIOD"]
[320330469,1711296647110,-1163.13635856,0.000179,2]
[320330470,1711296647118,-1163.13635856,0.000179,2]
[320330471,1711296647127,-1163.13635856,0.000179,2]
[320330472,1711296647139,-1163.13635856,0.000179,2]
[320330473,1711296647150,-1163.13635856,0.000179,2]
[320330474,1711296647160,-1163.13635856,0.000179,2]
[320330475,1711296647170,-1163.13635856,0.000179,2]
[320330476,1711296647179,-150.0,0.00017933,2]
[320330477,1711296647188,-150.0,0.00017933,2]
[320330478,1711296647197,-388.23970333,0.00017963,2]
[320330479,1711296647206,-1489.56232162,0.00017963,2]
[320330480,1711296647215,-513.31701268,0.00017963,2]
[320330481,1711296647226,-17010.47685767,0.0001798,2]
[320330482,1711296647237,-655.72,0.00017983,2]
[320330483,1711296647246,-1163.13635856,0.00017996,2]
[320330484,1711296647256,-205.14064619,0.00017998,2]
[320330486,1711296647265,-965.634495,0.00017999,2]
[320330487,1711296647275,-10618.62674872,0.00017999,2]
[320330488,1711296647284,-6647.869397,0.00017999,3]
[320330489,1711296647295,-18675.44367011,0.00018,2]
[320330491,1711296647321,-483.7090386,0.00018,2]
[320330493,1711296647333,-31883.76566172,0.00018,2]
[320330496,1711296647357,-335.25000385,0.00018,2]
[320330499,1711296647369,-704.6,0.00018,2]
[320330505,1711296647423,-6747.4017599,0.00018,2]
[320330508,1711296647435,-595.019566,0.00018,2]
[320330513,1711296647484,-6601.7772,0.00018,2]
[320330514,1711296647496,-4481.46949273,0.00018,2]
[320330515,1711296647522,-644.05,0.00018,2]
[320330622,1711296753605,362.27510157,0.00011324,2]
[320330624,1711296796898,291.20479818,0.00011324,2]
[320330625,1711296797307,178.71202553,0.00011324,2]
[320330626,1711296798741,938.00852913,0.00011324,2]
[320330627,1711296798772,328.45671859,0.00011324,2]
[320330628,1711296798899,286.90950873,0.00011324,2]
[320330629,1711296799709,150.0,0.00011324,2]
[320330630,1711296799730,150.0,0.00011324,2]
[320330631,1711296799754,150.0,0.00011324,2]
[320330632,1711296799775,150.0,0.00011324,2]
[320330633,1711296799795,150.0,0.00011324,2]
[320330634,1711296799817,713.81592167,0.00011324,2]
[320330635,1711296800844,150.0,0.00011324,2]
[320330636,1711296800865,150.0,0.00011324,2]
[320330637,1711296800886,150.0,0.00011324,2]
[320330638,1711296800908,228.99932913,0.00011324,2]
[320330639,1711296800930,18892.81412023,0.00011324,2]
[320330640,1711296800973,317.62926319,0.00011324,2]
[320330641,1711296801836,1586.66082534,0.00011324,2]
[320330642,1711296802312,363.7661971,0.00011324,2]
[320330643,1711296802798,7465.98897324,0.00011324,2]
[320330644,1711296804708,1129.68177284,0.00011324,2]
[320330645,1711296806589,949.0233613,0.00010758,2]
[320330646,1711296806712,341.82175375,0.00011324,2]
[320330647,1711296807653,155.0,0.00011324,2]
[320330648,1711296812738,938.00852913,0.00011324,2]
[320330649,1711296814754,328.45671859,0.00011324,2]
[320330650,1711296814850,19571.81344936,0.00011324,2]
[320330651,1711296814897,291.20479818,0.00011324,2]
[320330652,1711296815316,329.03646234,0.00011324,2]
[320330653,1711296815863,1463.81592167,0.00011324,2]
[320330654,1711296816333,363.7661971,0.00011324,2]
[320330655,1711296816938,182.37073681,0.00011324,2]
[320330656,1711296817842,1586.66082534,0.00011324,2]
[320330657,1711296818852,286.90950873,0.00011324,2]
[320330658,1711296820709,195.30944905,0.00011324,2]
[320330659,1711296822714,1129.68177284,0.00011324,2]
[320330660,1711296824786,7465.98897324,0.00011324,2]
[320330661,1711296825823,155.78729149,0.00011324,2]
[320330662,1711296826611,960.877243,0.00010758,2]
[320330663,1711296830737,938.00852913,0.00011324,2]
[320330664,1711296832313,363.62567107,0.00011324,2]
[320330665,1711296832905,291.20479818,0.00011324,2]
[320330666,1711296833252,478.33139545,0.00011324,2]
[320330667,1711296833708,1463.27206535,0.00011324,2]
[320330668,1711296834877,19571.81344936,0.00011324,2]
[320330669,1711296838722,1129.68177284,0.00011324,2]
[320330670,1711296839843,1586.66082534,0.00011324,2]
[320330671,1711296842796,7465.98897324,0.00011324,2]
[320330672,1711296842877,286.90950873,0.00011324,2]
[320330673,1711296851006,938.00852913,0.00011324,2]
[320330674,1711296854861,19571.81344936,0.00011324,2]
[320330675,1711296854905,291.20479818,0.00011324,2]
[320330676,1711296858722,1208.74495764,0.00011324,2]
[320330677,1711296859855,1586.66082534,0.00011324,2]
[320330678,1711296862788,3529.86906312,0.00011324,2]
[320330679,1711296866852,286.37263749,0.00011324,2]
[320330680,1711296867697,435.55204349,0.000241,120]
[320330681,1711296868747,392.10533987,0.00011324,2]
[320330682,1711296872915,432.84366751,0.00011324,2]
[320330683,1711296876857,19571.81344936,0.00011324,2]
[320330684,1711296879845,1586.66082534,0.00011324,2]
[320330685,1711296892915,1151.85072383,0.00011324,2]
[320330686,1711296897863,1586.66082534,0.00011324,2]
[320330687,1711296919855,1586.66082534,0.00011324,2]
[320330688,1711296935853,1586.66082534,0.00011324,2]
[320330689,1711296950900,1586.66082534,0.00011324,2]
[320330690,1711296968896,945.00232258,0.00011324,2]
[320330693,1711297219945,287.06111613,0.0002,120]
[320330695,1711297238081,287.06111613,0.0002,120]
[320330696,1711297253948,287.06111613,0.0002,120]
[320330697,1711297279980,287.06111613,0.0002,120]
[320330699,1711297367080,907.81887208,0.00011763,2]
[320330701,1711297377181,26699.92157788,0.00011763,2]
[320330712,1711297574875,277.33614309,0.00011844,2]
[320330713,1711297575535,485.39250088,0.00011844,2]
[320330714,1711297577069,165.09636315,0.00011844,2]
[320330715,1711297588104,1236.69244334,0.00011844,2]
[320330716,1711297588857,193.71088867,0.00011844,2]
[320330717,1711297589180,746.63794719,0.00011844,2]
[320330718,1711297594372,449.99072222,0.00011844,2]
[320330719,1711297594841,806.18760338,0.00011844,2]
[320330720,1711297595122,205.12684222,0.00011844,2]
[320330721,1711297601056,4699.05764962,0.00011844,2]
[320330722,1711297610625,362.27510157,0.00011844,2]
[320330741,1711297831484,-523.04649154,0.00011866,2]
[320330742,1711297831494,-294.72243506,0.00011866,2]
[320330743,1711297831503,-311.32980376,0.00011867,2]
[320330744,1711297831539,-194.95205668,0.00011867,2]
[320330745,1711297831799,-79.72390514,0.00012056,2]
[320330748,1711297831868,-94.04609486,0.00012056,2]
[320330749,1711297831877,-362.27510157,0.00012773,2]
[320330750,1711297831887,-124.44873883,0.00012774,2]
[320330751,1711297831898,-39.33454905,0.00012774,2]
[320330752,1711297831907,-1276.35,0.00013194,2]
[320330753,1711297831916,-151.52,0.00013699,2]
[320330754,1711297831925,-173.77,0.00014065,2]
[320330755,1711297831934,-295.0,0.00014154,2]
[320330756,1711297831943,-1238.94442072,0.00014155,2]
[320330757,1711297831952,-160.44483625,0.00014155,2]
[320330758,1711297831961,-1301.22296171,0.00014155,2]
[320330759,1711297831971,-205.44770215,0.00014155,2]
[320330760,1711297831980,-783.47628869,0.00014155,2]
[320330761,1711297831989,-150.99,0.00014155,2]
[320330762,1711297831998,-11198.67689847,0.00014156,2]
[320330763,1711297832008,-150.99,0.00014156,2]
[320330764,1711297832017,-2347.96,0.00014247,2]
[320330765,1711297832026,-163.78328785,0.00014482,2]
[320330766,1711297832035,-499.99,0.00014482,2]
[320330767,1711297832044,-337.26,0.00014482,2]
[320330769,1711297832054,-154.264861,0.00014521,2]
[320330771,1711297832062,-165.09636315,0.00014747,2]
[320330772,1711297832071,-758.18,0.00014748,2]
[320330774,1711297832080,-200.0,0.0001476,2]
[320330776,1711297832089,-151.52,0.00014776,2]
[320330778,1711297832098,-500.0,0.00014779,2]
[320330780,1711297832107,-200.01,0.00014779,2]
[320330782,1711297832116,-391.97,0.00014783,2]
[320330784,1711297832126,-200.0,0.00014783,2]
[320330786,1711297832135,-393.44,0.00014792,2]
[320330788,1711297832143,-11896.43206251,0.00014824,2]
[320330820,1711297832459,-11164.31793749,0.00014824,2]
[320330822,1711297832469,-500.0,0.00014824,2]
[320330824,1711297832478,-250.0,0.00014829,2]
[320330826,1711297832487,-819.23,0.00014848,2]
[320330827,1711297832497,-150.0,0.00014851,2]
[320330829,1711297832505,-165.78,0.00014858,2]
[320330831,1711297832515,-186.14051568,0.000149,2]
[320330833,1711297832524,-5450.55,0.00014907,2]
[320330835,1711297832533,-606.56,0.00014942,2]
[320330837,1711297832542,-2528.18498704,0.00015,2]
[320330839,1711297832551,-3761.74,0.00015026,2]
[320330841,1711297832561,-180.92,0.0001503,2]
[320330842,1711297832570,-228.42,0.0001504,2]
[320330843,1711297832580,-250.0,0.0001509,2]
[320330844,1711297832591,-884.6,0.00015091,2]
[320330845,1711297832600,-173.33,0.00015274,2]
[320330846,1711297832610,-154.264861,0.00015342,2]
[320330847,1711297832621,-1276.35,0.00015458,2]
[320330848,1711297832631,-806.18760338,0.00015731,2]
[320330849,1711297832640,-193.71088867,0.00015732,2]
[320330850,1711297832650,-151.52,0.00015853,2]
[320330851,1711297832659,-173.77,0.00016075,2]
[320330852,1711297832668,-742.86445411,0.00016107,2]
[320330853,1711297832677,-154.264861,0.00016164,2]
[320330854,1711297832687,-163.78328785,0.00016191,2]
[320330856,1711297832696,-150.0,0.000162,2]
[320330858,1711297832707,-150.0,0.000162,2]
[320330859,1711297832716,-363.23746396,0.00016438,2]
[320330861,1711297832725,-4517.26,0.00016438,2]
[320330863,1711297832735,-393.44,0.0001664,2]
[320330865,1711297832744,-170.55,0.00016712,2]
[320330867,1711297832753,-9002.28391869,0.00016802,2]
[320330869,1711297832762,-606.56,0.0001681,2]
[320330871,1711297832772,-375.31985048,0.00016823,2]
[320330873,1711297832781,-151.52,0.0001693,2]
[320330875,1711297832791,-174.85,0.00016958,2]
[320330877,1711297832801,-154.264861,0.00016986,2]
[320330879,1711297832810,-150.0,0.000171,2]
[320330881,1711297832819,-675.5295,0.00017401,2]
[320330882,1711297832829,-1276.35,0.00017721,2]
[320330883,1711297832839,-2517.56665046,0.00017748,2]
[320330884,1711297832848,-3761.74,0.00017766,2]
[320330885,1711297832857,-180.92,0.0001777,2]
[320330886,1711297832865,-243.1968,0.00017799,2]
[320330887,1711297832874,-14339.6608,0.00017799,2]
[320330888,1711297832884,-3274.5288,0.00017799,2]
[320330889,1711297832893,-1022.3519,0.00017799,2]
[320330890,1711297832902,-1284.67293075,0.00017799,2]
[320330891,1711297832911,-157.0,0.00017808,2]
[320330892,1711297832920,-167.12,0.00017808,10]
[320330893,1711297832929,-154.264861,0.00017808,2]
[320330894,1711297832938,-1235.85722495,0.00017897,2]
[320330895,1711297832947,-204.92926866,0.00017897,2]
[320330896,1711297832956,-1481.49786274,0.00017897,2]
[320330897,1711297832967,-277.23080767,0.00017898,2]
[320330898,1711297832976,-485.09113806,0.00017898,2]
[320330899,1711297832986,-3951.4646,0.00017899,2]
[320330900,1711297832995,-47169.15136535,0.00017899,2]
[320330901,1711297833008,-274.90092198,0.00017899,2]
[320330902,1711297833019,-10214.89490945,0.00017899,2]
[320330903,1711297833030,-11461.96790322,0.00017899,2]
[320330904,1711297833039,-1303.077425,0.00017899,2]
[320330905,1711297833054,-638.87,0.00017899,2]
[320330906,1711297833065,-551.24148495,0.00017899,2]
[320330907,1711297833082,-105012.82739005,0.00017899,2]
[320330908,1711297833091,-163.78328785,0.00017899,2]
[320330909,1711297833100,-221.97464108,0.00017899,2]
[320330910,1711297833110,-7810.93928756,0.00017899,2]
[320330911,1711297833119,-221.97464106,0.00017899,2]
[320330912,1711297833128,-221.97464106,0.000179,2]
[320330913,1711297833138,-221.97464106,0.000179,2]
[320330914,1711297833147,-7500.0,0.000179,2]
[320330915,1711297833156,-221.97464106,0.000179,2]
[320330916,1711297833166,-274.62698043,0.000179,2]
[320330917,1711297833175,-164.30115815,0.00017989,2]
[320330918,1711297833184,-2343.5739037,0.00017998,2]
[320330919,1711297833193,-743.97898463,0.00017998,2]
[320330920,1711297833202,-3359.51180267,0.00017998,2]
[320330921,1711297833211,-1033.74173495,0.00017998,2]
[320330922,1711297833220,-4164.74718768,0.00017998,2]
[320330923,1711297833229,-162.01333495,0.00017998,2]
[320330924,1711297833238,-5510.79847024,0.00017998,2]
[320330925,1711297833249,-3718.979,0.00017998,2]
[320330926,1711297833259,-2975.61136821,0.00017999,2]
[320330927,1711297833268,-10971.97927663,0.00017999,2]
[320330929,1711297837449,-232.62727175,0.000179,2]
[320330930,1711297837458,-550.82749776,0.00017999,2]
[320330931,1711297837507,-34969.1100047,0.00017999,2]
[320330935,1711297837568,-1203.88782761,0.00017999,2]
[320330936,1711297837673,-638.24848553,0.00017999,2]
[320330937,1711297837789,-68783.66492448,0.00017999,2]
[320330938,1711297837807,-422.59985525,0.00017999,2]
[320330939,1711297837818,-4733.50636248,0.00017999,2]
[320330940,1711297837831,-17448.75857103,0.00017999,2]
[320330941,1711297837842,-63799.99999999,0.00017999,2]
[320330942,1711297837854,-9724.17098629,0.00017999,2]
[320330943,1711297837867,-98973.79645808,0.00017999,2]
[320330968,1711297842084,-232.62727171,0.000179,2]
[320330969,1711297842093,-1469.19593916,0.00017999,2]
[320330970,1711297842104,-4534.98122466,0.00017999,2]
[320330971,1711297842116,-3660.0,0.00017999,2]
[320330972,1711297842278,-16887.71436569,0.00017999,2]
[320330973,1711297842318,-19146.04966624,0.00017999,2]
[320330974,1711297842343,-1324.00957452,0.00017999,2]
[320330976,1711297842355,-17179.92703841,0.00017999,2]
[320330979,1711297842384,-372.50946649,0.00017999,2]
[320330981,1711297842396,-1189.59548522,0.00017999,2]
[320330982,1711297842406,-484.29600592,0.00017999,2]
[320330983,1711297842446,-136525.0237738,0.00017999,2]
[320330986,1711297842458,-405.0578,0.00017999,2]
[320331014,1711297842817,-9397.31288915,0.00017999,2]
[320331016,1711297842828,-526.5420326,0.00017999,2]
[320331018,1711297842840,-3358.2523445,0.00017999,2]
[320331021,1711297842856,-19065.9,0.00017999,2]
[320331023,1711297842868,-1772.64518951,0.00017999,2]
[320331050,1711297843107,-858.3047866,0.00017999,2]
[320331053,1711297843118,-3436.30826596,0.00017999,2]
[320331140,1711297846555,-362.27510157,0.00014398,2]
[320331141,1711297846565,-559.92466322,0.00017998,2]
[320331142,1711297846574,-165.09636315,0.00017998,2]
[320331143,1711297846585,-11050.9542806,0.00017999,2]
[320331144,1711298427103,155.0,0.0002,30]
[320331145,1711298449803,155.0,0.0002,30]
[320331146,1711298743907,-214.69761119,0.0001195,2]
[320331147,1711298743936,-155.0,0.00011951,2]
[320331148,1711298743966,-155.0,0.00011952,2]
[320331149,1711298743997,-155.0,0.00011952,2]
[320331150,1711298744026,-520.77623655,0.00011953,2]
[320331151,1711298744055,-300.0,0.00011954,2]
[320331152,1711298744085,-12917.85490696,0.00011955,2]
[320331153,1711298744113,-2057.28397905,0.00011956,2]
[320331154,1711298744141,-3092.66347366,0.00011996,2]
[320331155,1711298744171,-173.77,0.00013179,2]
[320331296,1711299031713,-151.52,0.00013699,2]
[320331297,1711299031723,-228.91638345,0.00014398,2]
[320331298,1711299031733,-155.0,0.00014736,2]
[320331299,1711299031742,-405.81361655,0.00014737,2]
[320331300,1711299031753,-679.07638345,0.00014737,2]
[320331301,1711299031763,-285.69153785,0.00014999,2]
[320331302,1711299031835,-8326.21173346,0.00014999,2]
[320331303,1711299031844,-2528.18498704,0.00015,2]
[320331304,1711299031853,-165.78,0.00015992,2]
[320331305,1711299031862,-250.0,0.00016037,2]
[320331306,1711299031872,-200.0,0.00016049,2]
[320331307,1711299031881,-185.68,0.00016098,2]
[320331308,1711299031890,-499.99,0.00016121,2]
[320331309,1711299031900,-244.1532795,0.00016122,2]
[320331310,1711299031929,-704.76341114,0.00016122,2]
[320331311,1711299031940,-304.32330936,0.00016122,2]
[320331312,1711299031949,-150.0,0.000162,2]
[320331313,1711299031959,-250.0,0.00016203,2]
[320331314,1711299031967,-325.33,0.00016204,2]
[320331315,1711299031977,-267.61959064,0.00016228,2]
[320331316,1711299031988,-174.68040936,0.00016228,2]
[320331317,1711299031997,-200.0,0.00016356,2]
[320331318,1711299032006,-3.41854208,0.00016438,2]
[320331329,1711299037884,-496.58145792,0.00016438,2]
[320331330,1711299037894,-170.55,0.00016712,2]
[320331331,1711299037905,-3841.19,0.00016804,2]
[320331332,1711299037915,-1000.0,0.00016805,2]
[320331333,1711299037936,-186.67,0.00016883,2]
[320331334,1711299037946,-292.21,0.00017726,2]
[320331335,1711299037957,-329.36791404,0.00017798,2]
[320331336,1711299037967,-520.39153628,0.00017798,2]
[320331337,1711299037977,-894.53599112,0.00017799,2]
[320331338,1711299037999,-150.0,0.00017642,2]
[320331339,1711299038010,-161.21120683,0.00017799,2]
[320331340,1711299038173,-516.35356919,0.00017799,2]
[320331341,1711299038186,-4888.53822824,0.00017799,2]
[320331342,1711299038289,-743.46888367,0.00017799,2]
[320331344,1711299038356,-150.0,0.00017706,2]
[320331353,1711299038711,-785.60854143,0.00017799,2]
[320331361,1711299039712,-512.99332063,0.00017799,2]
[320331362,1711299039787,-91497.29025889,0.00017799,2]
[320331363,1711299039796,-1033.62773166,0.00017799,2]
[320331364,1711299039810,-500.54994624,0.00017799,2]
[320331365,1711299039905,-4914.54573014,0.00017799,2]
[320331366,1711299039917,-295.1268183,0.00017799,2]
[320331367,1711299040026,-1039.74897366,0.00017799,2]
[320331368,1711299040036,-734.41475723,0.00017799,2]
[320331370,1711299042017,-200.0,0.00016438,2]
[320331371,1711299042027,-63.587374,0.00017799,2]
[320331372,1711299042038,-1890.0,0.00017799,2]
[320331373,1711299042086,-1996.19396877,0.00017799,2]
[320331374,1711299042096,-433.20603123,0.00017799,2]
[320331375,1711299042108,-3316.01051078,0.00017799,2]
[320331376,1711299042120,-641.1929888,0.00017799,2]
[320331377,1711299042132,-1280.8239282,0.00017799,2]
[320331384,1711299042861,-250.0,0.00017595,2]
[320331385,1711299042871,-155.8622478,0.00017799,2]
[320331386,1711299042885,-712.01,0.00017799,2]
[320331387,1711299042903,-6605.86559319,0.00017799,2]
[320331388,1711299042913,-167.15,0.00017811,2]
[320331389,1711299042922,-157.0,0.00017835,2]
[320331390,1711299042932,-2630.83342534,0.000179,4]
[320331391,1711299042953,-1243.77178914,0.000179,4]
[320331392,1711299043028,-14144.35196441,0.000179,4]
[320331447,1711299046323,-1042.93,0.00015677,2]
[320331450,1711299046332,-385.94752453,0.000179,4]
[320331462,1711299046421,-15624.463042,0.000179,4]
[320331464,1711299046434,-331.43,0.000179,4]
[320331468,1711299046470,-6301.00892565,0.000179,4]
[320331471,1711299046482,-2989.12,0.000179,4]
[320331474,1711299046506,-715.46,0.000179,4]
[320331476,1711299046519,-718.87917685,0.000179,4]
[320331480,1711299046552,-1272.93493556,0.000179,4]
[320331483,1711299046565,-19472.49661293,0.000179,4]
[320331551,1711299049869,2528.18498704,0.00012,2]
[320331555,1711299066707,2528.18498704,0.00012329,2]
[320331561,1711299082312,9158.33921861,9e-05,2]
[320331571,1711299090727,2528.18498704,0.00012329,2]
[320331572,1711299094416,13861.22126209,0.0001,2]
[320331573,1711299098828,3697.08093297,0.00011,2]
[320331578,1711299114721,2528.18498704,0.00012,2]
[320331584,1711299135245,2528.18498704,0.00012,2]
[320331590,1711299155229,2528.18498704,0.00012,2]
[320331593,1711299173221,2528.18498704,0.00012,2]
[320331595,1711299189245,2528.18498704,0.00012,2]
[320331604,1711299209223,2528.18498704,0.00012,2]
[320331614,1711299225242,1216.64847202,0.00012,2]
[320331633,1711299259049,230.89337612,0.000135,2]
[320331634,1711299259124,285.56730264,0.000125,2]
[320331671,1711299659626,6950.45341982,0.0001,2]
[320331675,1711299751597,757.80019418,0.0001,2]
[320331697,1711299964004,4710.91201238,0.0001,2]
[320331705,1711300125044,15230.26346433,0.00012,2]
[320331790,1711300232856,-343.19395664,0.0001399,2]
[320331791,1711300232865,-155.0,0.00013991,2]
[320331792,1711300232874,-236.18168364,0.00013992,2]
[320331793,1711300232884,-155.0,0.00013993,2]
[320331794,1711300232893,-1648.07285972,0.00013993,2]
[320331795,1711300232933,-619.01323205,0.00013993,2]
[320331796,1711300232945,-3089.14264313,0.00013993,2]
[320331797,1711300232954,-361.0840548,0.00013994,2]
[320331798,1711300232986,-692.92968762,0.00013994,2]
[320331800,1711300232997,-4658.83712072,0.00013995,2]
[320331801,1711300233008,-1399.08302524,0.00013995,2]
[320331825,1711300237931,-1118.66591346,0.00013995,2]
[320331828,1711300237942,-150.0,0.00013999,2]
[320331830,1711300237952,-990.78,0.0001401,2]
[320331832,1711300237963,-166.67481098,0.00014305,2]
[320331834,1711300237974,-2794.57800455,0.00014774,2]
[320331836,1711300237986,-439.46,0.00015,2]
[320331838,1711300237995,-200.0,0.00015458,2]
[320331839,1711300238006,-834.48,0.00015592,2]
[320331841,1711300238018,-186.67,0.00015661,2]
[320331842,1711300238029,-221.15,0.00015667,2]
[320331843,1711300238040,-1000.0,0.00015675,2]
[320331844,1711300238051,-250.0,0.00015787,2]
[320331845,1711300238064,-250.0,0.00015791,2]
[320331846,1711300238081,-153.0703,0.0001589,2]
[320331847,1711300238091,-1399.08,0.00016127,2]
[320331849,1711300238101,-150.0,0.00016175,2]
[320331851,1711300238111,-990.78,0.00016273,2]
[320331853,1711300238120,-521.39,0.00016428,3]
[320331855,1711300238130,-1053.76796528,0.00016436,2]
[320331857,1711300238141,-155.43357442,0.00016436,2]
[320331859,1711300238151,-2173.11708694,0.00016436,2]
[320331861,1711300238161,-467.19111072,0.00016436,2]
[320331863,1711300238171,-1584.68807491,0.00016436,2]
[320331865,1711300238180,-410.65184247,0.00016436,2]
[320331867,1711300238190,-323.71729788,0.00016436,2]
[320331869,1711300238200,-7016.7451442,0.00016437,2]
[320331871,1711300238210,-146394.52153131,0.00016438,2]
[320331873,1711300238220,-153.0703,0.00016712,2]
[320331875,1711300238230,-499.99,0.00016739,2]
[320331877,1711300238240,-2958.28637235,0.00016769,2]
[320331879,1711300238251,-172.17,0.00017197,2]
[320331881,1711300238261,-170.67,0.00017266,2]
[320331883,1711300238270,-469.2421,0.000174,2]
[320331885,1711300238280,-601.4358,0.000174,2]
[320331888,1711300238290,-174.30661955,0.00017434,2]
[320331891,1711300238299,-1124.08881438,0.00017499,2]
[320331894,1711300238309,-201.03831839,0.00017499,5]
[320331897,1711300238319,-9435.11169153,0.000175,2]
[320331902,1711300238340,-35824.69500908,0.000175,2]
[320331906,1711300238353,-1013.36680485,0.000175,2]
[320331913,1711300238391,-219796.66019185,0.000175,2]
[320331918,1711300238405,-20513.40200569,0.000175,2]
[320331921,1711300238417,-2667.47999911,0.000175,2]
[320331930,1711300238455,-3523.12281,0.000175,2]
[320331933,1711300238468,-667.99,0.000175,2]
[320331938,1711300238483,-8127.5,0.000175,2]
[320332108,1711300240227,-16753.30898618,0.000175,2]
[320332109,1711300240239,-6508.50000001,0.000175,2]
[320332110,1711300240266,-435.14977055,0.000175,2]
[320332111,1711300240277,-1819.50004692,0.000175,2]
[320332112,1711300240289,-22755.46321647,0.000175,2]
[320332113,1711300240301,-10461.05033038,0.000175,2]
[320332114,1711300240327,-276776.1426378,0.000175,2]
[320332115,1711300240375,-1102.39994015,0.000175,2]
[320332134,1711300243007,-413.8784653,0.000175,2]
[320332135,1711300243019,-648.03,0.000175,2]
[320332138,1711300243241,-110948.24713879,0.000175,2]
[320332139,1711300243372,-2186.37961417,0.000175,2]
[320332140,1711300243384,-1530.4,0.000175,2]
[320332141,1711300243412,-427.71768406,0.000175,2]
[320332142,1711300243531,-50772.42218031,0.000175,2]
[320332143,1711300243591,-7862.75844046,0.000175,2]
[320332144,1711300243602,-19739.27686382,0.000175,2]
[320332300,1711300246451,-862.86786061,0.000175,2]
[320332301,1711300246463,-860.48216125,0.000175,2]
[320332302,1711300246595,-5927.43696181,0.000175,2]
[320332303,1711300246607,-104171.99999994,0.000175,2]
[320332304,1711300246807,-338.95998,0.000175,2]
[320332305,1711300246822,-925.78177314,0.000175,2]
[320332333,1711300253019,633157.02869839,0.00012,2]
[320332346,1711301089894,268248.08055568,0.00012,2]
[320332377,1711301374336,-806.18760338,0.00011885,2]
[320332378,1711301374358,-155.0,0.00011886,2]
[320332379,1711301374378,-659.59725038,0.00011887,2]
[320332380,1711301374397,-3739.00133696,0.00011887,2]
[320332381,1711301374419,-211.2892297,0.00011897,2]
[320332382,1711301374438,-9365.22426432,0.0001199,2]
[320332383,1711301374458,-155.30236405,0.00011998,2]
[320332384,1711301374477,-160.72367697,0.00011999,2]
[320332385,1711301374498,-184747.67427424,0.00012,2]
[320332388,1711301400838,-11600.0,0.00012,2]
[320332402,1711301432074,-671.02733994,0.00012,2]
[320332403,1711301432135,-147786.6852349,0.00012,2]
[320332404,1711301432144,-983.5777126,0.00014584,2]
[320332405,1711301432153,-891.7,0.00014684,2]
[320332406,1711301432162,-983.57771258,0.00015329,2]
[320332407,1711301432171,-250.0,0.00015971,2]
[320332408,1711301432180,-983.57771258,0.00016074,2]
[320332409,1711301432189,-200.0,0.00016108,2]
[320332410,1711301432198,-250.0,0.00016209,2]
[320332411,1711301432207,-170.67,0.00016228,2]
[320332412,1711301432216,-555.64,0.00016256,2]
[320332413,1711301432225,-3639.925,0.00016436,2]
[320332414,1711301432235,-800.0,0.00016478,2]
[320332415,1711301432244,-221.15,0.00016569,2]
[320332416,1711301432253,-200.0,0.00016624,2]
[320332417,1711301432262,-331.73,0.00016634,2]
[320332418,1711301432272,-983.57771258,0.00016819,2]
[320332419,1711301432281,-891.7,0.00016948,2]
[320332420,1711301432290,-3000.0,0.0001733,2]
[320332421,1711301432299,-174.95210356,0.0001739,2]
[320332422,1711301432309,-538.7517,0.00017399,2]
[320332423,1711301432318,-691.0452538,0.00017399,2]
[320332424,1711301432328,-100000.0,0.000174,2]
[320332425,1711301432337,-1000.0,0.000174,2]
[320332426,1711301432347,-7297.8285,0.000174,2]
[320332427,1711301432360,-2152.9249,0.000174,2]
[320332428,1711301432371,-777.82009269,0.00017478,2]
[320332429,1711301432380,-3739.00133696,0.00017479,2]
[320332430,1711301432389,-155.65055529,0.00017479,2]
[320332431,1711301432398,-796.71022923,0.00017479,2]
[320332432,1711301432407,-315882.6247454,0.0001748,4]
[320332433,1711301432416,-35298.29984169,0.0001749,4]